bitfinex-derivatives/quotes_SOLF0:USTF0_20250820
["timestamp","ask_amount","ask_price","bid_price","bid_amount"]
[1755651240402,1.12,178.45,178.33,352.03454996]
[1755651240614,2.88,178.44,178.33,211.45454996]
[1755651240805,2.88,178.44,178.31,0.05]
[1755651241104,2.88,178.39,178.28,0.05]
[1755651241504,2.88,178.37,178.28,0.05]
[1755651242008,2.88,178.35,178.28,0.05]
[1755651242408,1.16212045,178.34,178.28,0.05]
[1755651242804,2.88,178.32,178.26,140.64]
[1755651243106,2.88,178.32,178.24,216.3250115]
[1755651243303,1.12,178.31,178.24,216.3250115]
[1755651243504,2.88,178.3,178.24,216.2350115]
[1755651243706,4.0,178.3,178.24,216.2350115]
[1755651243904,2.88,178.28,178.22,140.7]
[1755651244105,2.88,178.28,178.16,0.09]
[1755651244303,2.88,178.26,178.16,0.09]
[1755651244703,2.88,178.23,178.16,0.09]
[1755651245609,1.12,178.22,178.16,0.09]
[1755651246211,2.88,178.23,178.16,0.09]
[1755651246608,1.12,178.22,178.16,0.09]
[1755651248206,2.88,178.23,178.16,0.09]
[1755651253005,1.12,178.22,178.16,0.09]
[1755651254613,1.12,178.22,178.16,5.7029]
[1755651254815,0.03769538,178.24,178.17,0.09]
[1755651255014,0.03769538,178.24,178.19,0.09]
[1755651255217,2.88,178.3,178.2,0.09]
[1755651255516,0.04136907,178.23,178.21,0.09]
[1755651255817,1.12,178.29,178.22,0.09]
[1755651256017,0.04284611,178.24,178.22,0.09]
[1755651256415,2.88,178.3,178.22,0.09]
[1755651256619,0.03536633,178.25,178.22,0.09]
[1755651256918,0.03536633,178.25,178.23,0.09]
[1755651258320,0.03536633,178.25,178.24,0.09]
[1755651259518,0.03536633,178.25,178.21,0.09]
[1755651259711,0.03536633,178.25,178.22,0.09]
[1755651259916,0.03536633,178.25,178.23,0.09]
[1755651260116,0.03536633,178.25,178.22,0.09]
[1755651260315,0.03536633,178.25,178.18,6.83104903]
[1755651260615,0.03536633,178.25,178.24,0.09]
[1755651262716,0.03536633,178.25,178.19,0.09]
[1755651263512,1.15536633,178.25,178.19,0.09]
[1755651263813,2.88,178.23,178.19,0.09]
[1755651264623,4.0,178.23,178.16,0.09]
[1755651265218,0.03751324,178.21,178.16,0.09]
[1755651265420,2.91751324,178.21,178.15,357.1214367]
[1755651265620,2.91751324,178.21,178.15,357.2114367]
[1755651266016,1.12,178.2,178.15,216.4114367]
[1755651266211,1.12,178.2,178.15,216.3214367]
[1755651266212,2.88,178.17,178.15,216.3214367]
[1755651266517,2.88,178.19,178.15,216.3214367]
[1755651267122,2.88,178.19,178.12,5.6141]
[1755651267322,2.88,178.19,178.11,6.92104903]
[1755651267516,1.12,178.18,178.11,6.92104903]
[1755651267722,0.04144362,178.17,178.11,6.92104903]
[1755651268517,0.04144362,178.17,178.11,12.53544903]
[1755651268712,0.04144362,178.17,178.11,6.92104903]
[1755651270921,0.04144362,178.17,178.11,12.53534903]
[1755651272319,0.04144362,178.17,178.11,6.92104903]
[1755651272716,1.16144362,178.17,178.11,6.92104903]
[1755651273118,1.16144362,178.17,178.11,0.09]
[1755651274625,4.18144362,178.17,178.11,0.09]
[1755651275020,3.06144362,178.17,178.11,0.09]
[1755651275322,3.02,178.15,178.1,140.34]
[1755651275627,1.12,178.16,178.1,140.34]
[1755651275817,3.02,178.13,178.1,140.34]
[1755651276420,3.06150009,178.13,178.1,140.34]
[1755651276616,1.12,178.12,178.1,140.34]
[1755651276818,3.02,178.11,178.1,140.34]
[1755651277229,1.12,178.12,178.1,140.34]
[1755651278225,0.04150009,178.13,178.1,140.43]
[1755651278722,0.04150009,178.13,178.1,140.34]
[1755651279030,3.06150009,178.13,178.1,140.34]
[1755651279522,3.06150009,178.13,178.12,0.09]
[1755651279523,0.04150009,178.13,178.12,0.09]
[1755651282027,3.02,178.18,178.12,0.09]
[1755651282232,3.02,178.22,178.15,0.09]
[1755651282428,3.02,178.22,178.15,140.23]
[1755651282629,1.12,178.21,178.15,140.23]
[1755651283328,1.12,178.21,178.16,0.04017728]
[1755651283631,4.14,178.21,178.16,0.13017728]
[1755651283833,1.12,178.2,178.16,0.04017728]
[1755651284131,6.83104903,178.3,178.15,140.14]
[1755651284132,3.02,178.28,178.15,140.14]
[1755651284631,3.02,178.26,178.16,0.04194527]
[1755651284830,3.02,178.26,178.15,140.14]
[1755651285037,1.12,178.25,178.19,0.03896614]
[1755651285332,3.02,178.29,178.15,140.14]
[1755651285533,3.02,178.28,178.15,140.14]
[1755651285832,3.02,178.28,178.2,0.03959124]
[1755651286032,3.02,178.26,178.2,0.03959124]
[1755651286433,13.00375038,178.3,178.2,0.03959124]
[1755651286434,3.02,178.24,178.2,0.03959124]
[1755651286634,3.02,178.22,178.2,0.03959124]
[1755651286935,13.00375038,178.3,178.2,0.03959124]
[1755651286936,3.02,178.28,178.2,0.03959124]
[1755651289335,1.12,178.27,178.2,0.03959124]
[1755651289640,3.02,178.25,178.2,0.03959124]
[1755651292236,4.14,178.24,178.2,0.03959124]
[1755651292437,3.02,178.26,178.2,0.03959124]
[1755651293639,5.614,178.45,178.2,0.03959124]
[1755651293640,4.14,178.25,178.21,0.09]
[1755651293845,3.02,178.3,178.21,0.09]
[1755651294243,3.02,178.3,178.24,0.04239876]
[1755651294244,1.12,178.29,178.24,0.04239876]
[1755651294434,3.02,178.28,178.24,0.04239876]
[1755651294637,3.02,178.27,178.24,0.04239876]
[1755651295038,1.12,178.26,178.24,0.04239876]
[1755651295243,3.02,178.25,178.24,0.04239876]
[1755651298148,4.14,178.25,178.24,0.04239876]
[1755651299943,4.14,178.25,178.16,0.09]
[1755651300143,3.02,178.25,178.16,0.09]
[1755651300344,2.96,178.29,178.16,0.09]
[1755651300739,2.96,178.29,178.18,0.09]
[1755651300942,1.12,178.28,178.18,0.09]
[1755651301150,0.03707746,178.25,178.18,0.09]
[1755651302452,1.15707746,178.25,178.19,0.09]
[1755651302848,1.15707746,178.25,178.19,5.7019]
[1755651303047,0.03707746,178.25,178.2,0.09]
[1755651303448,2.96,178.29,178.21,0.09]
[1755651303643,0.03644532,178.24,178.21,0.09]
[1755651303848,0.03644532,178.24,178.23,0.09]
[1755651304949,2.96,178.33,178.23,0.09]
[1755651305147,1.12,178.32,178.23,0.09]
[1755651306153,1.12,178.32,178.26,0.03539569]
[1755651306358,2.96,178.33,178.26,0.03539569]
[1755651306549,1.12,178.32,178.26,0.03539569]
[1755651307957,2.96,178.29,178.26,0.03539569]
[1755651308456,4.08,178.29,178.26,0.03539569]
[1755651309862,1.12,178.29,178.27,0.06]
[1755651311161,1.12,178.29,178.26,0.03539569]
[1755651311555,1.12,178.29,178.26,0.09539569]
[1755651311862,1.12,178.29,178.27,0.06]
[1755651312061,2.96,178.35,178.28,0.06]
[1755651312260,1.12,178.34,178.28,0.06]
[1755651312661,1.12,178.34,178.29,0.03878269]
[1755651312860,4.08,178.34,178.3,0.06]
[1755651313160,2.96,178.34,178.3,0.06]
[1755651313360,140.12,178.38,178.3,0.06]
[1755651313561,140.12,178.38,178.29,0.03878269]
[1755651313562,8.48577416,178.37,178.29,0.03878269]
[1755651313770,2.96,178.36,178.29,0.03878269]
[1755651314560,1.12,178.35,178.29,0.03878269]
[1755651314773,2.96,178.34,178.29,0.03878269]
[1755651314970,7.36577416,178.34,178.29,0.03878269]
[1755651315370,2.96,178.32,178.29,0.03878269]
[1755651315869,2.96,178.35,178.29,0.03878269]
[1755651317773,4.08,178.34,178.29,0.09878269]
[1755651318074,2.96,178.34,178.29,0.09878269]
[1755651318274,1.12,178.33,178.29,0.09878269]
[1755651318469,2.96,178.37,178.31,0.06]
[1755651318773,1.12,178.36,178.33,0.06]
[1755651319270,2.96,178.37,178.33,0.06]
[1755651319471,2.96,178.37,178.33,0.09957477]
[1755651320570,140.04,178.4,178.33,0.03957477]
[1755651320776,2.96,178.35,178.33,0.03957477]
[1755651321573,2.96,178.37,178.33,0.03957477]
[1755651321774,4.08,178.39,178.34,0.06]
[1755651321975,4.08,178.39,178.33,0.03957477]
[1755651322177,1.12,178.38,178.35,0.06]
[1755651322372,1.12,178.38,178.34,0.06]
[1755651322573,1.12,178.38,178.35,0.06]
[1755651322775,1.12,178.38,178.36,0.06]
[1755651324374,2.96,178.42,178.34,0.06]
[1755651324573,1.12,178.41,178.34,0.06]
[1755651328680,3.16,178.46,178.34,0.06]
[1755651328881,1.12,178.44,178.34,0.06]
[1755651329081,3.16,178.46,178.35,5.6067]
[1755651329277,1.12,178.45,178.31,0.05]
[1755651329481,3.16,178.46,178.37,0.03880426]
[1755651329682,1.12,178.45,178.38,0.05]
[1755651330275,1.12,178.44,178.38,0.05]
[1755651330680,3.16,178.46,178.38,0.05]
[1755651330876,1.12,178.45,178.38,0.05]
[1755651331690,1.12,178.45,178.38,5.6559]
[1755651331980,1.12,178.45,178.38,0.05]
[1755651332373,0.03839432,178.43,178.37,5.64510426]
[1755651332578,0.03839432,178.43,178.4,0.05]
[1755651332778,0.03839432,178.43,178.38,0.05]
[1755651332981,3.16,178.5,178.39,0.05]
[1755651333179,1.12,178.49,178.39,0.05]
[1755651333577,1.12,178.49,178.42,5.6047]
[1755651333783,3.16,178.5,178.42,5.6047]
[1755651334085,3.16,178.5,178.4,5.6053]
[1755651334279,3.16,178.48,178.38,6.84736466]
[1755651334481,3.16,178.46,178.44,0.04296549]
[1755651336382,3.16,178.45,178.44,0.04296549]
[1755651344289,3.16,178.51,178.44,0.04296549]
[1755651344492,3.16,178.5,178.44,0.04296549]
[1755651346894,3.16,178.48,178.44,0.04296549]
[1755651347291,3.16,178.45,178.44,0.04296549]
[1755651347692,4.28,178.45,178.44,0.04296549]
[1755651349996,3.16,178.44,178.35,0.05]
[1755651350200,3.16,178.43,178.35,0.05]
[1755651350787,3.16,178.41,178.35,0.05]
[1755651350993,3.16,178.41,178.34,215.98774008]
[1755651351300,3.16,178.38,178.34,215.98774008]
[1755651351496,4.39724072,178.4,178.34,215.98774008]
[1755651351801,3.16,178.35,178.34,215.98774008]
[1755651352000,3.16,178.35,178.31,0.05]
[1755651352301,3.16,178.41,178.31,4.39724072]
[1755651352504,1.12,178.38,178.32,0.05]
[1755651352695,4.39724072,178.43,178.32,0.05]
[1755651352696,1.12,178.4,178.32,0.05]
[1755651352895,3.16,178.41,178.32,0.05]
[1755651353300,1.12,178.4,178.32,0.05]
[1755651353496,3.16,178.39,178.32,0.05]
[1755651356099,1.12,178.39,178.32,0.05]
[1755651357904,1.12,178.39,178.34,4.39724072]
[1755651358110,1.12,178.39,178.36,0.05]
[1755651358409,1.12,178.39,178.37,0.07]
[1755651358902,1.12,178.39,178.38,0.07]
[1755651359109,1.12,178.39,178.34,4.39724072]
[1755651359308,1.12,178.39,178.36,0.07]
[1755651359507,1.12,178.39,178.35,0.07]
[1755651359707,3.16,178.43,178.35,0.07]
[1755651360007,1.12,178.42,178.35,0.07]
[1755651360202,2.89,178.46,178.4,0.07]
[1755651361300,2.89,178.46,178.37,4.39724072]
[1755651361505,2.89,178.44,178.37,4.39724072]
[1755651361898,4.01,178.44,178.37,4.39724072]
[1755651362098,2.89,178.44,178.37,4.39724072]
[1755651363002,2.89,178.44,178.38,0.07]
[1755651363506,2.89,178.5,178.38,0.07]
[1755651363701,4.01,178.5,178.4,4.39724072]
[1755651363901,4.01,178.5,178.41,0.07]
[1755651363902,1.12,178.49,178.41,0.07]
[1755651364297,2.89,178.48,178.4,4.39724072]
[1755651364509,2.89,178.47,178.38,0.07]
[1755651367505,2.89,178.45,178.37,4.39724072]
[1755651367903,2.89,178.43,178.35,0.07]
[1755651368108,2.89,178.43,178.33,4.39724072]
[1755651368508,2.89,178.43,178.34,0.07]
[1755651369912,2.89,178.41,178.34,0.07]
[1755651370320,1.12,178.4,178.34,0.07]
[1755651374121,2.89,178.41,178.34,0.07]
[1755651374415,2.89,178.39,178.3,381.18724072]
[1755651375115,2.89,178.37,178.3,376.79]
[1755651375613,1.12,178.36,178.3,376.79]
[1755651378222,26.26353823,178.48,178.27,144.15724072]
[1755651378223,4.01,178.35,178.27,144.15724072]
[1755651378412,2.89,178.35,178.27,144.15724072]
[1755651378912,2.89,178.33,178.27,139.76]
[1755651379320,2.89,178.33,178.23,0.07]
[1755651379522,1.12,178.32,178.25,0.07]
[1755651380020,2.89,178.33,178.25,0.07]
[1755651381323,1.12,178.32,178.25,0.07]
[1755651381526,2.89,178.37,178.28,0.07]
[1755651381926,1.12,178.36,178.28,0.07]
[1755651383427,1.12,178.35,178.28,0.07]
[1755651383736,2.89,178.37,178.24,4.59516579]
[1755651383737,2.89,178.37,178.33,0.07]
[1755651383925,4.01,178.36,178.3,4.39724072]
[1755651384124,2.89,178.36,178.3,4.39724072]
[1755651384327,1.12,178.35,178.3,4.39724072]
[1755651384531,4.01,178.35,178.31,0.07]
[1755651384920,1.12,178.34,178.3,4.39724072]
[1755651385125,2.89,178.42,178.3,4.39724072]
[1755651385425,2.89,178.4,178.3,4.46724072]
[1755651385827,1.12,178.39,178.3,4.46724072]
[1755651386025,1.12,178.39,178.31,0.07]
[1755651386231,1.12,178.38,178.31,0.07]
[1755651386431,1.12,178.39,178.31,5.608]
[1755651386731,1.12,178.39,178.32,0.07]
[1755651389731,3.1,178.38,178.32,0.07]
[1755651389934,4.22,178.38,178.3,4.39724072]
[1755651390132,3.1,178.38,178.3,4.39724072]
[1755651391434,3.1,178.36,178.29,139.76]
[1755651391827,3.1,178.34,178.29,139.76]
[1755651392035,3.1,178.34,178.26,0.05]
[1755651394936,1.12,178.33,178.26,0.05]
[1755651395139,4.22,178.36,178.26,0.05]
[1755651395437,3.1,178.35,178.26,0.05]
[1755651395831,3.1,178.35,178.25,4.39724072]
[1755651396030,3.1,178.33,178.25,4.39724072]
[1755651396430,1.12,178.32,178.25,4.39724072]
[1755651397833,3.1,178.31,178.25,4.39724072]
[1755651400228,3.1,178.31,178.25,4.44724072]
[1755651403038,3.1,178.31,178.24,139.74]
[1755651403338,1.12,178.3,178.24,139.74]
[1755651405841,1.12,178.3,178.24,139.79]
[1755651406342,3.1,178.34,178.26,0.05]
[1755651407534,3.1,178.34,178.26,5.6597]
[1755651407740,3.1,178.34,178.27,0.05]
[1755651407937,1.12,178.33,178.28,4.39724072]
[1755651408247,3.1,178.37,178.29,0.05]
[1755651408445,1.12,178.36,178.29,0.05]
[1755651408648,1.12,178.36,178.3,139.7]
[1755651409546,3.1,178.37,178.31,0.05]
[1755651409744,1.12,178.36,178.3,139.7]
[1755651410145,1.12,178.36,178.33,0.05]
[1755651410344,3.1,178.37,178.33,0.05]
[1755651410549,1.12,178.36,178.33,0.05]
[1755651411138,3.1,178.41,178.34,4.44724072]
[1755651411343,1.12,178.4,178.34,4.44724072]
[1755651411940,1.12,178.4,178.34,10.05454072]
[1755651413255,1.12,178.39,178.35,5.6568]
[1755651413551,3.1,178.41,178.35,0.05]
[1755651415852,1.12,178.4,178.35,5.6068]
[1755651416047,3.1,178.44,178.36,0.05]
[1755651416249,1.12,178.43,178.36,0.05]
[1755651416653,3.1,178.41,178.34,4.39724072]
[1755651416947,3.1,178.41,178.33,0.05]
[1755651417151,1.12,178.4,178.31,360.34943649]
[1755651417351,3.1,178.39,178.31,360.34943649]
[1755651418742,3.1,178.39,178.31,365.95763649]
[1755651419654,3.1,178.39,178.31,360.34943649]
[1755651420355,3.1,178.39,178.31,365.95743649]
[1755651420555,1.12,178.38,178.32,0.05]
[1755651420754,1.12,178.39,178.32,0.05]
[1755651420955,1.12,178.39,178.36,0.05]
[1755651421257,4.23,178.39,178.35,0.05]
[1755651421448,1.12,178.39,178.35,0.05]
[1755651421649,1.12,178.39,178.36,0.05]
[1755651422258,1.12,178.39,178.34,10.00454072]
[1755651422553,1.12,178.39,178.37,0.05]
[1755651423352,4.23,178.39,178.35,0.05]
[1755651424652,4.23,178.39,178.34,4.39724072]
[1755651424853,1.12,178.39,178.34,4.39724072]
[1755651425155,1.12,178.39,178.36,0.05]
[1755651426353,3.11,178.43,178.34,4.39724072]
[1755651426559,4.23,178.42,178.38,0.05]
[1755651426753,1.12,178.47,178.38,139.58]
[1755651426956,1.12,178.47,178.4,4.39724072]
[1755651426957,3.11,178.46,178.4,4.39724072]
[1755651427448,1.12,178.45,178.4,4.39724072]
[1755651427656,3.11,178.43,178.4,4.39724072]
[1755651427956,3.11,178.42,178.4,4.39724072]
[1755651428156,3.11,178.49,178.34,4.39724072]
[1755651428348,3.11,178.46,178.36,139.58]
[1755651428751,3.11,178.44,178.36,139.63]
[1755651428954,3.11,178.44,178.36,139.58]
[1755651429261,3.11,178.42,178.36,139.58]
[1755651429652,1.12,178.41,178.31,220.68943649]
[1755651429958,1.12,178.41,178.32,139.56]
[1755651429959,3.11,178.4,178.32,139.56]
[1755651430557,3.11,178.4,178.33,0.05]
[1755651430558,1.12,178.39,178.33,0.05]
[1755651430951,1.12,178.38,178.33,0.05]
[1755651431153,3.11,178.4,178.34,4.39724072]
[1755651431455,4.23,178.4,178.34,4.39724072]
[1755651432152,3.11,178.37,178.33,0.05]
[1755651432954,4.39724072,178.44,178.32,139.56]
[1755651433148,3.11,178.4,178.32,139.61]
[1755651433852,1.12,178.39,178.32,139.61]
[1755651434053,3.11,178.38,178.32,139.61]
[1755651434861,1.12,178.37,178.32,139.61]
[1755651435056,1.12,178.37,178.33,0.05]
[1755651435358,3.11,178.42,178.34,4.39724072]
[1755651435559,1.12,178.41,178.34,4.39724072]
[1755651435958,3.11,178.4,178.34,4.39724072]
[1755651436758,1.12,178.39,178.32,139.56]
[1755651436957,3.11,178.38,178.32,139.56]
[1755651437662,1.12,178.37,178.32,139.56]
[1755651437960,3.11,178.35,178.32,139.56]
[1755651438557,4.23,178.34,178.32,139.56]
[1755651438750,4.39724072,178.41,178.32,139.56]
[1755651438751,3.11,178.4,178.32,139.56]
[1755651438952,3.11,178.39,178.27,376.76]
[1755651439156,4.39724072,178.38,178.27,376.76]
[1755651439358,3.11,178.37,178.27,516.28]
[1755651439658,3.11,178.36,178.27,516.28]
[1755651439861,3.11,178.34,178.27,139.52]
[1755651440457,1.12,178.34,178.33,4.39724072]
[1755651441662,6.27569215,178.47,178.34,0.06]
[1755651441864,3.11,178.46,178.37,4.39724072]
[1755651442754,3.11,178.46,178.37,4.45724072]
[1755651445966,3.11,178.46,178.37,4.39724072]
[1755651447469,3.11,178.46,178.37,4.45724072]
[1755651448467,3.11,178.46,178.4,4.44724072]
[1755651449062,3.11,178.46,178.4,4.39724072]
[1755651451065,2.93,178.51,178.41,0.05]
[1755651454065,2.93,178.51,178.43,4.39724072]
[1755651455564,2.93,178.51,178.43,4.44724072]
[1755651457972,2.93,178.51,178.42,4.39724072]
[1755651462575,2.93,178.51,178.39,4.39724072]
[1755651463878,2.93,178.51,178.39,4.44724072]
[1755651465971,2.93,178.51,178.39,4.39724072]
[1755651466166,2.93,178.51,178.4,0.05]
[1755651466575,2.93,178.51,178.43,0.05]
[1755651469379,2.93,178.51,178.43,5.6044]
[1755651469676,2.93,178.51,178.44,0.05]
[1755651473080,2.93,178.51,178.45,4.39724072]
[1755651473279,2.93,178.54,178.46,0.05]
[1755651479380,2.93,178.54,178.44,4.39724072]
[1755651479781,2.93,178.54,178.43,0.07]
[1755651481877,2.93,178.54,178.4,4.46724072]
[1755651482082,2.93,178.54,178.41,0.07]
[1755651489495,4.39724072,178.53,178.41,0.07]
[1755651489694,3.09,178.52,178.41,0.07]
[1755651494210,3.09,178.51,178.42,0.07]
[1755651497710,4.39724072,178.54,178.4,14.59780651]
[1755651497908,3.09,178.5,178.43,0.07]
[1755651500516,3.09,178.53,178.44,0.07]
[1755651500813,3.09,178.56,178.5,0.07]
[1755651503710,3.09,178.56,178.47,0.07]
[1755651504316,3.09,178.56,178.44,4.66516579]
[1755651504512,4.39724072,178.55,178.44,0.07]
[1755651504719,3.09,178.54,178.44,0.07]
[1755651509721,3.09,178.54,178.44,5.674]
[1755651510517,3.09,178.54,178.45,0.05]
[1755651514422,3.09,178.54,178.46,4.44724072]
[1755651517026,3.09,178.54,178.46,10.05074072]
[1755651517324,3.09,178.54,178.47,0.05]
[1755651518221,3.09,178.54,178.46,4.39724072]
[1755651518723,3.09,178.54,178.46,4.44724072]
[1755651519023,3.09,178.54,178.4,4.59516579]
[1755651519223,2.94,178.51,178.41,0.05]
[1755651520024,2.94,178.51,178.38,4.44724072]
[1755651520226,4.39724072,178.49,178.38,4.44724072]
[1755651520527,2.94,178.48,178.35,4.44724072]
[1755651520729,2.94,178.45,178.35,0.05]
[1755651521423,2.94,178.45,178.32,4.59516579]
[1755651521630,2.94,178.42,178.3,14.60070651]
[1755651521828,2.94,178.42,178.31,0.05]
[1755651522024,2.94,178.42,178.31,4.64516579]
[1755651522326,2.94,178.42,178.29,4.59516579]
[1755651522521,2.94,178.36,178.25,0.05]
[1755651522725,2.94,178.33,178.22,0.05]
[1755651523327,2.94,178.33,178.22,5.661]
[1755651523539,2.94,178.33,178.22,0.05]
[1755651523931,2.94,178.33,178.25,0.05]
[1755651524528,2.94,178.37,178.27,4.39724072]
[1755651524731,2.94,178.37,178.28,0.05]
[1755651525830,2.94,178.37,178.27,4.39724072]
[1755651526030,2.94,178.34,178.21,4.39724072]
[1755651526333,2.94,178.34,178.22,0.05]
[1755651526928,2.94,178.34,178.25,0.05]
[1755651530934,4.39724072,178.31,178.16,216.34586947]
[1755651531132,2.94,178.3,178.17,4.39724072]
[1755651532137,2.94,178.27,178.14,4.39724072]
[1755651533037,2.94,178.27,178.15,0.05]
[1755651534137,2.94,178.27,178.17,0.05]
[1755651540143,2.92,178.21,178.12,139.6]
[1755651540349,2.92,178.17,178.07,0.06]
[1755651540936,4.39724072,178.15,178.07,0.06]
[1755651541144,2.92,178.14,178.06,376.74]
[1755651541344,2.92,178.14,178.04,0.06]
[1755651542646,4.39724072,178.12,178.04,0.06]
[1755651543750,2.92,178.14,178.04,0.06]
[1755651543951,2.92,178.17,178.04,0.06]
[1755651544147,2.92,178.17,178.06,4.39724072]
[1755651544343,2.92,178.17,178.08,5.6153]
[1755651544542,2.92,178.17,178.09,0.06]
[1755651545242,2.92,178.21,178.1,0.06]
[1755651545442,2.92,178.21,178.13,0.06]
[1755651546951,2.92,178.21,178.09,5.675]
[1755651547847,2.92,178.21,178.09,5.615]
[1755651548049,2.92,178.21,178.1,0.06]
[1755651552347,2.92,178.21,178.1,5.6747]
[1755651554758,2.92,178.21,178.1,0.06]
[1755651554947,2.92,178.21,178.11,0.06]
[1755651555349,2.92,178.25,178.14,0.06]
[1755651555854,2.92,178.25,178.17,5.6125]
[1755651556157,2.92,178.25,178.17,5.6725]
[1755651556358,2.92,178.25,178.17,0.06]
[1755651556553,2.92,178.25,178.13,0.06]
[1755651557553,2.92,178.25,178.14,5.6135]
[1755651557861,2.92,178.25,178.13,0.06]
[1755651558055,2.92,178.25,178.13,5.6737]
[1755651559153,2.92,178.25,178.13,0.06]
[1755651560060,2.92,178.25,178.11,6.86117445]
[1755651560852,2.92,178.25,178.12,0.06]
[1755651562263,2.92,178.25,178.09,377.16]
[1755651562467,2.92,178.22,178.09,377.16]
[1755651564562,2.92,178.22,178.08,139.6]
[1755651566069,2.92,178.22,178.08,139.66]
[1755651568372,4.4137336,178.18,178.08,139.66]
[1755651568673,3.07,178.17,178.08,139.66]
[1755651569166,3.07,178.17,178.08,139.6]
[1755651569467,3.07,178.17,178.07,0.06]
[1755651575079,3.07,178.17,178.06,0.06]
[1755651577680,3.07,178.14,178.03,0.06]
[1755651578178,3.07,178.11,178.03,0.06]
[1755651583482,7.4837336,178.15,178.03,0.06]
[1755651584077,3.07,178.14,178.03,0.06]
[1755651586982,3.07,178.11,178.03,0.06]
[1755651587689,3.07,178.14,178.03,0.06]
[1755651587989,3.07,178.14,178.05,0.06]
[1755651588583,3.07,178.14,178.06,0.06]
[1755651589291,3.07,178.14,178.07,0.06]
[1755651589878,4.4137336,178.18,178.07,5.6757]
[1755651590086,3.07,178.18,178.08,0.06]
[1755651590481,3.07,178.23,178.13,4.4137336]
[1755651590689,3.07,178.23,178.09,139.58]
[1755651590690,3.07,178.23,178.16,4.4137336]
[1755651590991,3.07,178.23,178.14,0.06]
[1755651591686,3.07,178.27,178.16,0.06]
[1755651592189,3.07,178.25,178.11,139.64]
[1755651592392,3.07,178.25,178.12,0.06]
[1755651592592,3.07,178.23,178.12,0.06]
[1755651594990,3.07,178.23,178.13,4.4137336]
[1755651595193,3.07,178.23,178.14,0.06]
[1755651595486,4.4137336,178.27,178.17,0.06]
[1755651595796,3.07,178.27,178.17,0.06]
[1755651599396,4.4137336,178.26,178.13,4.4137336]
[1755651599601,2.89,178.25,178.13,0.06]
[1755651600702,2.89,178.25,178.15,0.06]
[1755651601299,2.89,178.25,178.16,0.06]
[1755651601800,2.89,178.25,178.17,4.4737336]
[1755651602004,6.22634402,178.32,178.18,0.06]
[1755651602005,2.89,178.28,178.18,0.06]